bitfinex/quotes_BTCUSD_20230405
["timestamp","ask_amount","ask_price","bid_price","bid_amount"]
[1680705851053,0.4950728,28159.0,28156.0,0.00018]
[1680705851275,0.4958928,28159.0,28155.0,0.58917111]
[1680705851493,0.4948928,28159.0,28156.0,0.19367852]
[1680705851695,0.5030728,28159.0,28158.0,0.001]
[1680705851911,0.4950728,28159.0,28156.0,0.27841296]
[1680705852547,0.48317814,28159.0,28156.0,0.27853296]
[1680705852758,0.35471056,28158.0,28156.0,0.27859296]
[1680705853187,0.48329814,28159.0,28156.0,0.27859296]
[1680705853394,0.3613928,28159.0,28156.0,0.19385852]
[1680705853584,0.1345,28158.0,28156.0,0.19385852]
[1680705853839,0.1425,28158.0,28156.0,0.27959296]
[1680705854046,0.1425,28158.0,28156.0,0.19485852]
[1680705854262,0.48921056,28158.0,28156.0,0.00018]
[1680705854461,0.05138,28157.0,28156.0,0.00518]
[1680705854579,0.88181867,28158.0,28156.0,0.00518]
[1680705854779,0.88181867,28158.0,28156.0,0.00018]
[1680705854982,0.052515,28157.0,28156.0,0.00018]
[1680705855188,0.051754,28157.0,28156.0,0.00018]
[1680705855768,0.88181867,28158.0,28156.0,0.00018]
[1680705855982,0.05096,28157.0,28156.0,0.00018]
[1680705856190,0.88181867,28158.0,28156.0,0.00018]
[1680705856363,0.88981867,28158.0,28156.0,0.00118]
[1680705856572,0.88181867,28158.0,28156.0,0.00018]
[1680705856723,0.88281867,28158.0,28156.0,0.00018]
[1680705857331,0.1355,28158.0,28156.0,0.46601252]
[1680705857540,0.1345,28160.0,28157.0,0.25566715]
[1680705857740,0.008,28158.0,28157.0,0.25584715]
[1680705857939,0.1345,28160.0,28157.0,0.25584715]
[1680705858153,0.001,28158.0,28157.0,0.25566715]
[1680705858465,0.001,28158.0,28157.0,0.25584715]
[1680705859331,0.1345,28160.0,28157.0,0.25584715]
[1680705859655,0.1345,28160.0,28157.0,0.26084715]
[1680705859859,6e-05,28162.0,28158.0,0.35471056]
[1680705860090,6e-05,28167.0,28159.0,0.94452289]
[1680705860311,0.0228717,28168.0,28165.0,0.08498629]
[1680705860312,0.0227517,28168.0,28165.0,0.08498629]
[1680705860531,0.0227517,28168.0,28166.0,0.44318909]
[1680705860754,0.0227517,28168.0,28167.0,0.3]
[1680705860970,0.0227517,28168.0,28167.0,0.30018]
[1680705861386,0.36282142,28168.0,28167.0,0.30018]
[1680705861815,0.0227517,28168.0,28167.0,0.30018]
[1680705862449,0.0227517,28168.0,28167.0,0.30518]
[1680705862660,0.0227517,28168.0,28167.0,0.30018]
[1680705862869,0.0247517,28168.0,28167.0,0.30018]
[1680705864134,0.0247517,28168.0,28167.0,0.47701544]
[1680705864356,0.0247517,28168.0,28167.0,0.17701544]
[1680705864549,0.0247517,28168.0,28167.0,0.17683544]
[1680705864958,0.0247517,28168.0,28166.0,0.00018]
[1680705865180,0.1334,28167.0,28165.0,0.00018]
[1680705865397,0.1334,28167.0,28161.0,0.29745202]
[1680705865398,0.1334,28167.0,28164.0,0.14469648]
[1680705865620,0.46191197,28167.0,28164.0,0.14469648]
[1680705865832,0.049656,28166.0,28165.0,0.36635251]
[1680705866063,0.0229317,28168.0,28165.0,0.39053251]
[1680705866300,0.0227517,28168.0,28165.0,0.36653251]
[1680705866531,0.0227517,28168.0,28165.0,0.36635251]
[1680705866947,0.0227517,28168.0,28165.0,0.37735251]
[1680705867158,0.0227517,28168.0,28165.0,0.37753251]
[1680705867588,0.0227517,28168.0,28165.0,0.37735251]
[1680705868248,0.0227517,28168.0,28166.0,0.2081074]
[1680705869646,0.0227517,28168.0,28166.0,0.2131074]
[1680705870061,0.35542979,28168.0,28166.0,0.2131074]
[1680705870470,0.053346,28167.0,28166.0,0.2131074]
[1680705870647,0.053346,28167.0,28166.0,0.5132874]
[1680705870885,0.35542979,28168.0,28166.0,0.5132874]
[1680705871061,0.35542979,28168.0,28166.0,0.2082874]
[1680705871272,0.35542979,28168.0,28166.0,0.00518]
[1680705871483,0.35542979,28168.0,28162.0,0.48498629]
[1680705871484,0.34661789,28167.0,28164.0,0.22850865]
[1680705871681,0.34661789,28167.0,28165.0,0.3]
[1680705871907,0.34661789,28167.0,28166.0,0.005]
[1680705872040,0.34661789,28167.0,28166.0,0.00518]
[1680705872366,0.42810235,28168.0,28166.0,0.00518]
[1680705872630,0.49399248,28167.0,28166.0,0.00018]
[1680705873007,0.0227517,28168.0,28165.0,0.46591174]
[1680705873242,0.0227517,28168.0,28165.0,0.46609174]
[1680705873623,0.46552421,28168.0,28165.0,0.46609174]
[1680705873939,0.46552421,28168.0,28165.0,0.45509174]
[1680705874167,0.051476,28167.0,28166.0,0.005]
[1680705874306,0.052197,28167.0,28166.0,0.15354383]
[1680705874511,0.053913,28167.0,28166.0,0.15354383]
[1680705874739,0.40710069,28167.0,28165.0,0.31118]
[1680705874912,0.35318769,28167.0,28165.0,0.00018]
[1680705875130,0.35318769,28167.0,28166.0,0.005]
[1680705875334,0.39407337,28168.0,28166.0,0.22310968]
[1680705875542,0.39407337,28168.0,28166.0,0.00018]
[1680705875750,0.39407337,28168.0,28165.0,0.011]
[1680705875751,0.40954179,28167.0,28165.0,0.011]
[1680705875940,0.68369637,28166.0,28165.0,0.011]
[1680705876165,0.99069433,28166.0,28165.0,0.011]
[1680705876643,0.55422556,28166.0,28161.0,0.00018]
[1680705876848,0.1344,28163.0,28161.0,0.00018]
[1680705877069,0.1344,28163.0,28160.0,0.19652697]
[1680705877070,0.051414,28162.0,28160.0,0.19670697]
[1680705877916,0.051414,28162.0,28161.0,0.001]
[1680705878136,0.051414,28162.0,28160.0,0.19670697]
[1680705878367,0.146827,28163.0,28160.0,0.20770697]
[1680705878586,0.146827,28163.0,28160.0,0.01118]
[1680705878794,0.43237875,28162.0,28158.0,0.00018]
[1680705879038,0.051628,28161.0,28157.0,0.41054037]
[1680705879260,0.19352481,28161.0,28157.0,0.41054037]
[1680705879478,0.19352481,28161.0,28157.0,0.00018]
[1680705879479,0.19607181,28160.0,28157.0,0.00018]
[1680705879705,0.1336,28158.0,28155.0,0.22514358]
[1680705879931,0.27549681,28158.0,28155.0,0.22514358]
[1680705880144,0.1336,28158.0,28157.0,0.011]
[1680705880347,0.185895,28158.0,28156.0,0.00018]
[1680705880553,0.05338,28157.0,28156.0,0.00018]
[1680705880767,0.06581,28157.0,28156.0,0.00018]
[1680705881409,0.44910005,28157.0,28154.0,0.0009915]
[1680705881620,0.44910005,28157.0,28156.0,0.001]
[1680705881621,0.40172005,28157.0,28156.0,0.001]
[1680705881840,0.45401505,28157.0,28156.0,0.001]
[1680705882309,0.53751505,28157.0,28156.0,0.00118]
[1680705882536,0.53751505,28157.0,28156.0,0.001]
[1680705882537,1.11592978,28157.0,28156.0,0.001]
[1680705882753,1.11592978,28157.0,28150.0,0.21246573]
[1680705882754,0.3127,28156.0,28151.0,0.00012]
[1680705882976,0.35471056,28153.0,28147.0,0.06354966]
[1680705883227,0.27990381,28152.0,28147.0,0.06354966]
[1680705883450,0.1677,28148.0,28145.0,0.41053422]
[1680705883671,0.1677,28148.0,28146.0,0.1891758]
[1680705883672,0.63486137,28147.0,28146.0,0.1891758]
[1680705883895,0.63486137,28147.0,28146.0,0.00018]
[1680705883896,0.57706456,28147.0,28146.0,0.00018]
[1680705884174,0.90349092,28147.0,28144.0,0.00018]
[1680705884404,0.084,28145.0,28144.0,0.00018]
[1680705884612,0.148107,28145.0,28144.0,0.00018]
[1680705884837,0.135672,28145.0,28144.0,0.00018]
[1680705885058,0.50281756,28145.0,28142.0,0.02278499]
[1680705885278,0.084,28143.0,28142.0,0.02278499]
[1680705885486,0.50438356,28143.0,28142.0,0.02278499]
[1680705886112,0.50438356,28143.0,28142.0,0.02478499]
[1680705886317,0.50438356,28143.0,28142.0,0.02278499]
[1680705886521,0.60020613,28143.0,28142.0,0.02478499]
[1680705886734,0.96649164,28143.0,28142.0,0.02460499]
[1680705886949,0.85823307,28143.0,28142.0,0.02260499]
[1680705887158,0.151237,28143.0,28142.0,0.02478499]
[1680705887343,0.053237,28143.0,28142.0,0.29668447]
[1680705888441,0.067237,28143.0,28142.0,0.29868447]
[1680705888741,0.151337,28143.0,28142.0,0.29868447]
[1680705888977,0.137337,28143.0,28142.0,0.29668447]
[1680705889232,0.151337,28143.0,28142.0,0.29868447]
[1680705889458,0.014,28143.0,28142.0,0.29868447]
[1680705890299,0.014,28143.0,28142.0,0.32478499]
[1680705891166,0.37302537,28149.0,28142.0,0.32278499]
[1680705891372,0.38545937,28149.0,28142.0,0.02278499]
[1680705891577,0.38545937,28149.0,28142.0,0.35720568]
[1680705891578,0.008,28143.0,28142.0,0.35720568]
[1680705891826,0.34384204,28148.0,28142.0,0.65620568]
[1680705892034,0.34384204,28148.0,28142.0,0.36820568]
[1680705892421,0.052097,28147.0,28142.0,0.35620568]
[1680705892652,0.001,28143.0,28142.0,0.36820568]
[1680705894800,0.053317,28144.0,28142.0,0.35907269]
[1680705895023,0.053317,28144.0,28142.0,0.34707269]
[1680705895229,0.053317,28144.0,28143.0,0.26371457]
[1680705895434,0.053317,28144.0,28143.0,0.26389457]
[1680705895883,0.054317,28144.0,28143.0,0.26389457]
[1680705896148,0.001,28144.0,28143.0,0.26389457]
[1680705897165,0.37542234,28147.0,28143.0,0.26389457]
[1680705897409,0.053298,28146.0,28143.0,0.26989457]
[1680705897819,0.053801,28147.0,28143.0,0.26989457]
[1680705898245,0.053801,28147.0,28143.0,0.26389457]
[1680705898450,0.053801,28147.0,28143.0,0.26989457]
[1680705898657,0.053801,28147.0,28143.0,0.26389457]
[1680705898866,0.053801,28147.0,28143.0,0.26989457]
[1680705899526,0.053801,28147.0,28144.0,0.37364545]
[1680705899737,0.053801,28147.0,28144.0,0.37382545]
[1680705900570,0.35338114,28146.0,28144.0,0.37382545]
[1680705900791,0.05063,28145.0,28144.0,0.37382545]
[1680705901219,0.063065,28145.0,28144.0,0.00018]
[1680705902081,0.077065,28145.0,28144.0,0.00118]
[1680705902295,0.06463,28145.0,28144.0,0.00118]
[1680705902509,0.077065,28145.0,28144.0,0.00118]
[1680705902729,0.077065,28145.0,28144.0,0.001]
[1680705902943,0.077065,28145.0,28144.0,0.00118]
[1680705903173,0.5473822,28145.0,28144.0,0.00018]
[1680705903387,0.084,28144.0,28143.0,0.00018]
[1680705903599,0.61060656,28144.0,28143.0,0.00018]
[1680705904477,0.62460656,28144.0,28143.0,0.00218]
[1680705905752,0.94460656,28144.0,28143.0,0.002]
[1680705905967,0.94451253,28144.0,28143.0,0.002]
[1680705906186,1.08522608,28144.0,28143.0,0.002]
[1680705906399,1.08522608,28144.0,28142.0,0.22260499]
[1680705906400,1.07134608,28144.0,28142.0,0.22260499]
[1680705906612,0.67424056,28143.0,28142.0,0.22260499]
[1680705906822,0.68685656,28143.0,28142.0,0.22260499]
[1680705907304,0.85307507,28143.0,28142.0,0.22260499]
[1680705907517,1.06624903,28143.0,28142.0,0.22260499]
[1680705907981,1.09324903,28143.0,28142.0,0.22260499]
[1680705908197,0.58685656,28143.0,28142.0,0.22260499]
[1680705908410,0.50285656,28143.0,28142.0,0.62932028]
[1680705908624,0.50285656,28143.0,28142.0,0.22260499]
[1680705909263,0.52985656,28143.0,28142.0,0.22260499]
[1680705909474,0.50285656,28143.0,28142.0,0.22260499]
[1680705909682,0.8867662,28143.0,28142.0,0.22260499]
[1680705909899,0.8677662,28143.0,28142.0,0.22260499]
[1680705910121,0.52185656,28143.0,28142.0,0.22260499]
[1680705910346,0.13571,28143.0,28142.0,0.59807475]
[1680705910567,0.13571,28143.0,28142.0,0.22260499]
[1680705910568,0.019,28143.0,28142.0,0.22260499]
[1680705910772,0.019,28143.0,28142.0,0.56948684]
[1680705911210,0.019,28143.0,28142.0,0.22260499]
[1680705911442,0.019,28143.0,28142.0,0.64520227]
[1680705911854,0.019,28143.0,28142.0,0.64538227]
[1680705912521,0.012435,28145.0,28142.0,0.64538227]
[1680705912750,0.001,28143.0,28142.0,0.64538227]
[1680705912980,0.052157,28143.0,28142.0,0.64538227]
[1680705913196,0.053157,28143.0,28142.0,0.65238227]
[1680705913429,0.012435,28145.0,28142.0,0.64538227]
[1680705913639,0.050296,28144.0,28142.0,0.64538227]
[1680705913850,0.050296,28144.0,28142.0,0.64638227]
[1680705914073,0.062732,28144.0,28142.0,0.64638227]
[1680705914297,0.43839324,28146.0,28142.0,0.64638227]
[1680705914298,0.051136,28143.0,28142.0,0.64638227]
[1680705914720,0.052589,28143.0,28142.0,0.64638227]
[1680705914963,0.012435,28145.0,28142.0,0.64538227]
[1680705915173,0.051314,28144.0,28143.0,0.20623594]
[1680705915628,0.06375,28144.0,28143.0,0.00018]
[1680705915844,0.051314,28144.0,28143.0,0.00018]
[1680705916265,0.051314,28144.0,28143.0,0.18169488]
[1680705916507,0.053733,28145.0,28143.0,0.18169488]
[1680705917822,0.006,28144.0,28143.0,0.18269488]
[1680705918045,0.52523083,28146.0,28144.0,0.40756767]
[1680705918278,0.071759,28145.0,28144.0,0.40774767]
[1680705918492,0.065194,28145.0,28144.0,0.00018]
[1680705918721,0.065194,28145.0,28142.0,0.57787271]
[1680705918937,0.052924,28144.0,28142.0,0.57787271]
[1680705919384,0.35471056,28143.0,28142.0,0.57787271]
[1680705919596,0.40706456,28143.0,28142.0,0.57787271]
[1680705920035,0.41950056,28143.0,28142.0,0.57787271]
[1680705920249,0.41950056,28143.0,28142.0,0.22278499]
[1680705920250,0.51425474,28143.0,28142.0,0.22278499]
[1680705920468,0.052354,28143.0,28142.0,0.22278499]
[1680705920688,0.37562528,28146.0,28142.0,0.54994059]
[1680705920939,0.012436,28144.0,28142.0,0.55012059]
[1680705921152,0.134628,28143.0,28142.0,0.22278499]
[1680705921368,0.159064,28143.0,28142.0,0.22278499]
[1680705921583,0.50177456,28143.0,28142.0,0.22278499]
[1680705922443,0.52677456,28143.0,28142.0,0.22278499]
[1680705922641,0.50177456,28143.0,28142.0,0.22278499]
[1680705923083,0.050428,28143.0,28142.0,0.37014897]
[1680705923510,0.44876014,28145.0,28142.0,0.37014897]
[1680705923511,0.050697,28144.0,28142.0,0.37014897]
[1680705923716,0.41831337,28144.0,28142.0,0.37014897]
[1680705923931,0.05529,28143.0,28142.0,0.37014897]
[1680705924142,0.07329,28143.0,28142.0,0.37014897]
[1680705924346,0.82044144,28143.0,28142.0,0.22278499]
[1680705924970,0.83844144,28143.0,28142.0,0.22278499]
[1680705925168,0.82044144,28143.0,28142.0,0.22278499]
[1680705925589,0.84544144,28143.0,28142.0,0.22278499]
[1680705925797,0.90464144,28143.0,28142.0,0.22278499]
[1680705926029,0.92264144,28143.0,28142.0,0.22278499]
[1680705926639,0.92264144,28143.0,28142.0,6e-05]
[1680705926640,1.0085002,28143.0,28142.0,6e-05]
[1680705926857,0.3127,28142.0,28138.0,0.0216]
[1680705927069,0.1684,28139.0,28138.0,0.0216]
[1680705927305,0.61084756,28139.0,28138.0,0.0216]
[1680705927509,0.52664756,28139.0,28138.0,0.0216]
[1680705928359,0.59266522,28139.0,28138.0,0.0216]
[1680705928583,1.04182436,28139.0,28138.0,0.0216]
[1680705928798,1.01482436,28139.0,28138.0,0.0216]
[1680705929012,0.67666522,28139.0,28138.0,0.0216]
[1680705929226,0.61064756,28139.0,28138.0,0.0216]
[1680705929434,1.05015837,28139.0,28138.0,0.0216]
[1680705929638,1.07715837,28139.0,28138.0,0.0216]
[1680705929913,0.61064756,28139.0,28138.0,0.0216]
[1680705930123,0.72370522,28139.0,28138.0,0.0216]
[1680705930324,0.79670522,28139.0,28138.0,0.0216]
[1680705930529,1.25116542,28139.0,28138.0,0.0216]
[1680705930746,1.17816542,28139.0,28138.0,0.00511605]
[1680705930947,0.72370522,28139.0,28138.0,0.00511605]
[1680705931564,0.69670522,28139.0,28138.0,0.00511605]
[1680705931769,0.72370522,28139.0,28138.0,0.00511605]
[1680705932177,0.97284844,28139.0,28138.0,0.00511605]
[1680705932803,0.94584844,28139.0,28138.0,0.00511605]
[1680705933015,0.97284844,28139.0,28138.0,0.00511605]
[1680705933218,0.94584844,28139.0,28138.0,0.00511605]
[1680705933637,0.97284844,28139.0,28138.0,0.00511605]
[1680705934330,1.10712618,28139.0,28138.0,0.00511605]
[1680705934549,0.97284844,28139.0,28138.0,0.00511605]
[1680705934757,0.88864844,28139.0,28138.0,0.00511605]
[1680705936072,0.61064756,28139.0,28138.0,0.00511605]
[1680705936291,0.63764756,28139.0,28138.0,0.00511605]
[1680705937382,0.63764756,28139.0,28133.0,0.27007189]
[1680705937383,0.2127,28137.0,28124.0,0.0216]
[1680705937647,0.1676,28125.0,28124.0,0.0216]
[1680705937870,0.307071,28125.0,28124.0,0.0216]
[1680705938097,0.519771,28125.0,28124.0,0.0216]
[1680705938546,1.01637837,28125.0,28124.0,0.0216]
[1680705938763,1.19448156,28125.0,28124.0,0.0216]
[1680705938978,1.34170572,28125.0,28124.0,0.0216]
[1680705939225,1.34170572,28125.0,28107.0,0.15314554]
[1680705939226,0.2127,28115.0,28107.0,0.15314554]
[1680705939458,0.2127,28115.0,28098.0,0.0216]
[1680705939459,0.17786,28111.0,28099.0,0.51204549]
[1680705939705,0.122256,28108.0,28105.0,6e-05]
[1680705939917,0.122256,28108.0,28099.0,0.16971685]
[1680705939918,0.052348,28107.0,28100.0,0.16977685]
[1680705940196,0.08438,28113.0,28104.0,0.0216]
[1680705940406,0.19190581,28112.0,28104.0,0.37631056]
[1680705940621,0.15434681,28112.0,28104.0,0.37649056]
[1680705940832,0.053227,28111.0,28104.0,0.37649056]
[1680705941055,0.14189681,28110.0,28104.0,0.37649056]
[1680705941274,0.14189681,28110.0,28105.0,0.45453885]
[1680705941537,0.00018,28113.0,28105.0,0.44759056]
[1680705941770,0.08418973,28113.0,28105.0,0.36339056]
[1680705941970,0.0711316,28112.0,28105.0,0.36339056]
[1680705942179,0.14189681,28112.0,28105.0,0.36339056]
[1680705942399,0.14189681,28111.0,28105.0,0.35489056]
[1680705943257,0.22487949,28111.0,28105.0,0.74048736]
[1680705943474,0.08335729,28109.0,28105.0,0.3857768]
[1680705943688,0.049147,28108.0,28105.0,0.3857768]
[1680705943912,0.15434881,28108.0,28105.0,0.3857768]
[1680705944160,0.005,28111.0,28106.0,0.75471056]
[1680705944377,0.005,28111.0,28106.0,0.45661367]
[1680705944587,0.005,28111.0,28107.0,0.3]
[1680705944800,0.07799668,28112.0,28107.0,0.30018]
[1680705945014,0.005,28108.0,28107.0,0.30018]
[1680705945222,0.35471056,28114.0,28107.0,0.30018]
[1680705945463,0.16166102,28115.0,28107.0,0.30018]
[1680705945676,0.001,28111.0,28107.0,0.35589056]
[1680705945888,0.31600583,28115.0,28107.0,0.35489056]
[1680705946122,0.31600583,28115.0,28108.0,0.3]
[1680705946344,0.17410902,28115.0,28108.0,0.30018]
[1680705946566,0.051123,28114.0,28108.0,0.30018]
[1680705946789,0.21227658,28114.0,28109.0,0.42955394]
[1680705946996,0.07037977,28114.0,28109.0,0.42973394]
[1680705947691,0.07037977,28114.0,28109.0,0.7844445]
[1680705947893,0.07037977,28114.0,28109.0,0.42973394]
[1680705948303,0.07537977,28114.0,28109.0,0.42973394]
[1680705948510,0.051085,28113.0,28109.0,0.35961394]
[1680705948731,0.063534,28113.0,28109.0,0.35955394]
[1680705948942,0.051085,28113.0,28109.0,0.35955394]
[1680705949156,0.017629,28114.0,28110.0,0.33430422]
[1680705949371,0.017449,28114.0,28110.0,0.15014828]
[1680705949586,0.012449,28114.0,28110.0,0.15014828]
[1680705949794,0.005,28113.0,28111.0,0.35471056]
[1680705950015,0.005,28113.0,28112.0,0.4843]
[1680705950192,0.005,28113.0,28112.0,0.75471056]
[1680705950646,0.005,28113.0,28112.0,0.65471056]
[1680705950863,0.00018,28116.0,28112.0,0.65471056]
[1680705951076,0.012,28114.0,28113.0,0.35471056]
[1680705951289,0.2667465,28121.0,28113.0,0.74751056]
[1680705951497,0.2793725,28121.0,28114.0,0.3926]
[1680705951748,0.012626,28121.0,28115.0,0.35471056]
[1680705951962,0.012446,28121.0,28116.0,0.3]
[1680705952176,0.012626,28121.0,28117.0,0.35471056]
[1680705952385,0.00218,28121.0,28117.0,0.35471056]
[1680705952833,0.00018,28121.0,28117.0,0.35471056]
[1680705953298,0.00018,28123.0,28118.0,0.3841]
[1680705953517,0.27703236,28124.0,28118.0,0.73901056]
[1680705953725,0.27703236,28124.0,28118.0,0.65471056]
[1680705953726,0.001,28121.0,28118.0,0.65471056]
[1680705953960,0.23690807,28123.0,28118.0,0.65471056]
[1680705954179,0.23708807,28123.0,28118.0,0.65471056]
[1680705954378,0.00018,28123.0,28118.0,0.65471056]
[1680705954613,0.26113612,28124.0,28119.0,0.45216337]
[1680705954835,0.005,28121.0,28119.0,0.35471056]
[1680705955046,0.28779994,28122.0,28119.0,0.353835]
[1680705955269,0.28779994,28122.0,28117.0,0.00018]
[1680705955270,0.20722281,28121.0,28117.0,0.00018]
[1680705955478,0.20722281,28121.0,28116.0,0.3]
[1680705955479,0.0843,28119.0,28116.0,0.3]
[1680705955684,0.065337,28118.0,28117.0,0.29679604]
[1680705955890,0.063725,28118.0,28117.0,0.29679604]
[1680705956099,0.051278,28118.0,28117.0,0.29679604]
[1680705956307,0.064924,28118.0,28117.0,0.29679604]
[1680705956491,0.06675,28118.0,28117.0,0.29679604]
[1680705956728,0.012447,28118.0,28117.0,0.29679604]
[1680705956949,0.06355,28118.0,28116.0,0.3]
[1680705957156,0.053443,28117.0,28116.0,0.66406325]
[1680705957362,0.012447,28118.0,28116.0,0.66406325]
[1680705957569,0.051517,28117.0,28116.0,0.66406325]
[1680705958176,0.078517,28117.0,28116.0,0.66406325]
[1680705958389,0.027,28117.0,28116.0,0.66406325]
[1680705958808,0.0039627,28116.0,28105.0,0.1]
[1680705959021,0.35471056,28106.0,28100.0,0.00018]
[1680705959232,0.35471056,28106.0,28098.0,0.0216]
[1680705959233,0.2127,28104.0,28098.0,0.0216]
[1680705959431,0.299752,28103.0,28098.0,0.0216]
[1680705959670,0.3065087,28102.0,28098.0,0.0216]
[1680705959889,0.1843,28100.0,28098.0,0.02178]
[1680705960102,0.065385,28099.0,28098.0,0.02178]
[1680705960310,0.13723,28099.0,28098.0,0.02178]
[1680705960516,0.52930656,28099.0,28098.0,0.02178]
[1680705960723,0.52930656,28099.0,28098.0,0.0216]
[1680705961151,0.62768522,28099.0,28098.0,0.0216]
[1680705961356,0.60068522,28099.0,28098.0,0.0216]
[1680705961574,0.62768522,28099.0,28098.0,0.0216]
[1680705961776,0.52930656,28099.0,28098.0,0.0216]
[1680705961982,0.52950656,28099.0,28098.0,0.0216]
[1680705962389,0.84809967,28099.0,28098.0,0.0216]
[1680705962804,0.84809967,28099.0,28098.0,0.35602028]
[1680705962805,0.05293,28099.0,28098.0,0.35602028]
[1680705963010,0.027,28099.0,28098.0,0.35620028]
[1680705963224,0.073814,28099.0,28098.0,0.35620028]
[1680705965156,0.086269,28099.0,28098.0,0.35620028]
[1680705965640,0.32528536,28099.0,28098.0,0.02178]
[1680705965843,0.72981892,28099.0,28098.0,0.02178]
[1680705966045,0.72981892,28099.0,28098.0,0.0216]
[1680705966600,0.81872991,28099.0,28098.0,0.0216]
[1680705966798,0.89172991,28099.0,28098.0,0.0216]
[1680705967031,0.96946456,28099.0,28098.0,0.0216]
[1680705967238,0.87391355,28099.0,28098.0,0.0216]
[1680705967432,1.23610605,28099.0,28098.0,0.0216]
[1680705967635,1.01490605,28099.0,28098.0,0.0216]
[1680705967837,0.67971355,28099.0,28098.0,0.0216]
[1680705968043,0.91547654,28099.0,28098.0,0.0216]
[1680705968486,0.82656555,28099.0,28098.0,0.0216]
[1680705968690,0.57697496,28099.0,28098.0,0.0216]
[1680705968851,0.79817496,28099.0,28098.0,0.0216]
[1680705969879,0.78967496,28099.0,28098.0,0.0216]
[1680705970133,0.79817496,28099.0,28098.0,0.0216]
[1680705970311,0.91135866,28099.0,28098.0,0.0216]
[1680705971603,0.88435866,28099.0,28098.0,0.0216]
[1680705971843,0.91135866,28099.0,28098.0,0.0216]
[1680705972061,0.88435866,28099.0,28098.0,0.0216]
[1680705972203,0.91135866,28099.0,28098.0,0.0216]
[1680705973066,0.91135866,28099.0,28096.0,0.01]
[1680705973067,0.11704697,28098.0,28096.0,0.01]
[1680705973268,0.11704697,28098.0,28088.0,0.00018]
[1680705973269,0.2127,28095.0,28088.0,0.00018]
[1680705973484,0.2127,28095.0,28087.0,0.0216]
[1680705973485,0.1351,28091.0,28087.0,0.0216]
[1680705973697,0.081969,28091.0,28087.0,0.0216]
[1680705973897,0.05705,28091.0,28090.0,0.44634203]
[1680705974307,0.41176056,28091.0,28090.0,0.0221]
[1680705974921,0.49952994,28091.0,28090.0,0.02228]
[1680705975120,0.43876056,28091.0,28090.0,0.02228]
[1680705975322,0.41176056,28091.0,28090.0,0.02228]
[1680705975534,0.77403095,28091.0,28090.0,0.0171]
[1680705975739,0.74703095,28091.0,28090.0,0.0171]
[1680705975936,0.76157195,28091.0,28090.0,0.0171]
[1680705976354,0.40704139,28091.0,28090.0,0.0171]
[1680705976562,0.40686139,28091.0,28090.0,0.0171]
[1680705976756,0.41932039,28091.0,28090.0,0.0171]
[1680705976955,0.77403095,28091.0,28090.0,0.0171]
[1680705977171,0.74703095,28091.0,28090.0,0.0171]
[1680705977316,0.77403095,28091.0,28090.0,0.0171]
[1680705977723,0.84039385,28091.0,28090.0,0.0171]
[1680705977926,0.77403095,28091.0,28090.0,0.0171]
[1680705978157,0.74703095,28091.0,28090.0,0.0171]
[1680705978751,0.77403095,28091.0,28090.0,0.0171]
[1680705978957,0.39930156,28091.0,28090.0,0.0171]
[1680705979200,0.027,28091.0,28090.0,0.0171]
[1680705979436,0.23901774,28097.0,28095.0,0.1132385]
[1680705979437,0.23919774,28097.0,28095.0,0.1132385]
[1680705979655,0.045808,28096.0,28095.0,0.1132385]
[1680705979870,0.00018,28096.0,28095.0,0.1132385]
[1680705980079,0.25933229,28096.0,28095.0,0.1132385]
[1680705980333,0.00018,28097.0,28095.0,0.46794906]
[1680705980607,0.012453,28106.0,28096.0,0.66753656]
[1680705980837,0.012453,28106.0,28097.0,0.1]
[1680705980838,0.35471056,28105.0,28097.0,0.1]
[1680705981058,0.64321961,28105.0,28096.0,1.05771056]
[1680705981264,0.78511642,28105.0,28096.0,1.05771056]
[1680705981465,0.001,28097.0,28096.0,1.05771056]
[1680705981673,0.14207681,28104.0,28096.0,1.07063656]
[1680705981883,0.43419144,28104.0,28096.0,1.06871056]
[1680705982096,0.15452981,28104.0,28096.0,1.06871056]
[1680705982309,0.15452981,28104.0,28096.0,1.05771056]
[1680705982951,0.14189681,28103.0,28096.0,1.05771056]
[1680705983202,0.15435081,28103.0,28096.0,1.06871056]
[1680705983427,0.15453081,28103.0,28096.0,1.05771056]
[1680705983646,0.15453081,28103.0,28096.0,1.06871056]
[1680705983859,0.15453081,28103.0,28096.0,1.05771056]
[1680705984070,0.15453081,28103.0,28096.0,1.06871056]
[1680705984272,0.14207681,28103.0,28096.0,1.06871056]
[1680705984528,0.15453081,28103.0,28097.0,0.33884661]
[1680705984740,0.012634,28103.0,28096.0,1.06883056]
[1680705984959,0.00018,28104.0,28097.0,0.35471056]
[1680705985176,0.024904,28108.0,28096.0,0.714]
[1680705985177,0.25272182,28106.0,28098.0,0.35471056]
[1680705985391,0.37793767,28105.0,28098.0,0.35471056]
[1680705985604,0.00018,28105.0,28099.0,0.2351]
[1680705985838,0.00018,28107.0,28100.0,0.67617956]
[1680705986043,0.26729615,28109.0,28101.0,0.013563]
[1680705986250,0.27992715,28109.0,28102.0,0.35471056]
[1680705986655,0.26747615,28109.0,28102.0,0.35471056]
[1680705987303,0.00018,28109.0,28102.0,0.35771056]
[1680705987519,0.26909985,28112.0,28104.0,0.1351]
[1680705987728,0.26909985,28112.0,28105.0,0.35471056]
[1680705987729,0.27370531,28111.0,28105.0,0.35471056]
[1680705987935,0.27388531,28111.0,28106.0,0.013902]
[1680705988155,0.00018,28111.0,28107.0,0.35471056]
[1680705988377,0.00018,28113.0,28108.0,0.012898]
[1680705988590,0.00018,28113.0,28109.0,0.35471056]
[1680705989694,0.00018,28113.0,28109.0,0.48981056]
[1680705989909,0.25951999,28115.0,28110.0,0.1]
[1680705990109,0.25951999,28115.0,28110.0,0.41641056]
[1680705990315,0.25951999,28115.0,28110.0,0.35471056]
[1680705990745,0.24083025,28114.0,28110.0,0.35471056]
[1680705991041,0.24083025,28114.0,28111.0,0.74921546]
[1680705991042,0.00012,28114.0,28111.0,0.74921546]
[1680705991261,0.30748676,28117.0,28112.0,0.013802]
[1680705991478,0.30748676,28117.0,28112.0,0.1]
[1680705991694,0.30748676,28117.0,28111.0,0.72771913]
[1680705992330,0.00018,28117.0,28114.0,0.1347]
[1680705992538,0.02376001,28122.0,28112.0,0.1579]